fUST/lending_fUST_20260221
["ID","MTS","AMOUNT","RATE_DAILY","PERIOD"]
[406217402,1771612244138,-161.50269228,0.00029511,5]
[406217403,1771612244147,-500.0,0.00029888,2]
[406217404,1771612244156,-198.0,0.0003,14]
[406217405,1771612244165,-198.0,0.00031644,14]
[406217406,1771612244174,-424.72702378,0.00032,3]
[406217407,1771612244184,-176.62856897,0.00032131,31]
[406217408,1771612244193,-151.26,0.000323,7]
[406217409,1771612244203,-588.04,0.00035025,10]
[406217410,1771612244212,-500.0,0.00038356,19]
[406217411,1771612244221,-500.0,0.00038356,19]
[406217412,1771612244231,-500.0,0.00038356,19]
[406217413,1771612244240,-1085.04,0.00038356,7]
[406217414,1771612244250,-10248.52,0.00038356,19]
[406217415,1771612244259,-500.0,0.00038356,19]
[406217416,1771612244268,-500.0,0.00038356,19]
[406217417,1771612244278,-500.0,0.00038356,19]
[406217418,1771612244287,-743.73449086,0.00038356,7]
[406217419,1771612244296,-500.0,0.00038356,19]
[406217420,1771612244305,-715.24,0.00038356,19]
[406217421,1771612244314,-1341.29,0.00038356,19]
[406217422,1771612244324,-507.54,0.00038356,19]
[406217423,1771612244332,-500.0,0.00038356,19]
[406217424,1771612244342,-500.0,0.00038356,19]
[406217425,1771612244352,-500.0,0.00038356,19]
[406217426,1771612244361,-500.0,0.00038356,19]
[406217427,1771612244370,-500.0,0.00038356,19]
[406217428,1771612244379,-500.0,0.00038356,19]
[406217429,1771612244390,-500.0,0.00038356,19]
[406217430,1771612244399,-999.0,0.00038629,120]
[406217431,1771612244408,-500.0,0.0003863,19]
[406217432,1771612244418,-500.0,0.0003863,19]
[406217433,1771612244427,-1085.04,0.0003863,7]
[406217434,1771612244437,-10248.52,0.0003863,19]
[406217435,1771612244446,-253.62,0.0003863,19]
[406217436,1771612244456,-500.0,0.0003863,19]
[406217437,1771612244466,-500.0,0.0003863,19]
[406217438,1771612244475,-500.0,0.0003863,19]
[406217439,1771612244485,-715.24,0.0003863,19]
[406217440,1771612244498,-1341.29,0.0003863,19]
[406217441,1771612244507,-507.54,0.0003863,19]
[406217442,1771612244516,-500.0,0.0003863,19]
[406217443,1771612244525,-500.0,0.0003863,19]
[406217444,1771612244535,-500.0,0.0003863,19]
[406217445,1771612244544,-500.0,0.0003863,19]
[406217446,1771612244554,-500.0,0.0003863,19]
[406217447,1771612244566,-500.0,0.0003863,19]
[406217448,1771612244575,-500.0,0.0003863,19]
[406217449,1771612244585,-500.0,0.00038904,19]
[406217450,1771612244595,-500.0,0.00038904,19]
[406217451,1771612244604,-1085.04,0.00038904,7]
[406217452,1771612244613,-10248.52,0.00038904,19]
[406217453,1771612244623,-500.0,0.00038904,19]
[406217454,1771612244632,-500.0,0.00038904,19]
[406217455,1771612244641,-500.0,0.00038904,19]
[406217456,1771612244651,-715.24,0.00038904,19]
[406217457,1771612244660,-1341.29,0.00038904,19]
[406217458,1771612244669,-507.54,0.00038904,19]
[406217459,1771612244680,-500.0,0.00038904,19]
[406217460,1771612244689,-500.0,0.00038904,19]
[406217461,1771612244698,-500.0,0.00038904,19]
[406217462,1771612244707,-500.0,0.00038904,19]
[406217463,1771612244716,-500.0,0.00038904,19]
[406217464,1771612244725,-500.0,0.00038904,19]
[406217465,1771612244734,-500.0,0.00038904,19]
[406217466,1771612244743,-500.0,0.00039178,19]
[406217467,1771612244753,-500.0,0.00039178,19]
[406217468,1771612244762,-1085.04,0.00039178,7]
[406217469,1771612244771,-10248.52,0.00039178,19]
[406217470,1771612244780,-500.0,0.00039178,19]
[406217471,1771612244790,-500.0,0.00039178,19]
[406217472,1771612244799,-500.0,0.00039178,19]
[406217473,1771612244808,-715.24,0.00039178,19]
[406217474,1771612244817,-1341.29,0.00039178,19]
[406217475,1771612244827,-507.54,0.00039178,19]
[406217476,1771612244836,-500.0,0.00039178,19]
[406217477,1771612244845,-500.0,0.00039178,19]
[406217478,1771612244854,-500.0,0.00039178,19]
[406217479,1771612244864,-500.0,0.00039178,19]
[406217480,1771612244874,-500.0,0.00039178,19]
[406217481,1771612244883,-500.0,0.00039178,19]
[406217482,1771612244893,-500.0,0.00039178,19]
[406217483,1771612244903,-5698.24365053,0.00039197,70]
[406217484,1771612244912,-5000.0,0.00039197,69]
[406217485,1771612244921,-5000.0,0.00039197,68]
[406217486,1771612244931,-5000.0,0.00039197,68]
[406217487,1771612244941,-168.77,0.000392,7]
[406217488,1771612244950,-301.27,0.00039442,3]
[406217489,1771612244959,-500.0,0.00039452,19]
[406217490,1771612244968,-500.0,0.00039452,19]
[406217491,1771612244978,-1085.04,0.00039452,7]
[406217492,1771612244987,-10248.52,0.00039452,19]
[406217493,1771612244996,-500.0,0.00039452,19]
[406217494,1771612245005,-500.0,0.00039452,19]
[406217495,1771612245014,-500.0,0.00039452,19]
[406217496,1771612245023,-715.24,0.00039452,19]
[406217497,1771612245032,-1341.29,0.00039452,19]
[406217498,1771612245041,-507.54,0.00039452,19]
[406217499,1771612245050,-500.0,0.00039452,19]
[406217500,1771612245060,-500.0,0.00039452,19]
[406217501,1771612245070,-500.0,0.00039452,19]
[406217502,1771612245082,-500.0,0.00039452,19]
[406217503,1771612245091,-500.0,0.00039452,19]
[406217504,1771612245100,-500.0,0.00039452,19]
[406217505,1771612245109,-500.0,0.00039452,19]
[406217506,1771612245120,-600.0,0.00039681,60]
[406217507,1771612245128,-825.8,0.00039725,2]
[406217508,1771612245137,-500.0,0.00039726,19]
[406217509,1771612245146,-427.6,0.00039726,19]
[406217510,1771612245155,-1085.04,0.00039726,7]
[406217511,1771612245165,-10248.52,0.00039726,19]
[406217512,1771612245174,-205.93,0.00039726,19]
[406217513,1771612245184,-500.0,0.00039726,19]
[406217514,1771612245193,-277.54,0.00039726,19]
[406217515,1771612245202,-715.24,0.00039726,19]
[406217516,1771612245211,-1341.29,0.00039726,19]
[406217517,1771612245220,-507.54,0.00039726,19]
[406217518,1771612245229,-500.0,0.00039726,19]
[406217519,1771612245238,-500.0,0.00039726,19]
[406217520,1771612245247,-500.0,0.00039726,19]
[406217521,1771612245256,-500.0,0.00039726,19]
[406217522,1771612245266,-500.0,0.00039726,19]
[406217523,1771612245275,-500.0,0.00039726,19]
[406217524,1771612245283,-240.13,0.00039726,19]
[406217525,1771612245292,-198.0,0.00039871,90]
[406217526,1771612245301,-1900.0,0.000399,30]
[406217527,1771612245310,-210.06154424,0.00039925,2]
[406217528,1771612245319,-999.0,0.00039999,120]
[406217529,1771612245328,-489.28,0.0004,19]
[406217530,1771612245336,-1085.04,0.0004,7]
[406217531,1771612245345,-10248.52,0.0004,19]
[406217532,1771612245354,-500.0,0.0004,19]
[406217533,1771612245364,-715.24,0.0004,19]
[406217534,1771612245373,-1341.29,0.0004,19]
[406217535,1771612245382,-507.54,0.0004,19]
[406217536,1771612245391,-500.0,0.0004,19]
[406217537,1771612245401,-500.0,0.0004,19]
[406217538,1771612245410,-500.0,0.0004,19]
[406217539,1771612245419,-500.0,0.0004,19]
[406217540,1771612245428,-500.0,0.0004,19]
[406217541,1771612245437,-500.0,0.0004,19]
[406217542,1771612245446,-215.48129323,0.00040153,12]
[406217543,1771612245454,-1085.04,0.00040273,7]
[406217544,1771612245463,-10248.52,0.00040273,19]
[406217545,1771612245472,-500.0,0.00040273,19]
[406217546,1771612245481,-715.24,0.00040273,19]
[406217547,1771612245493,-1341.29,0.00040273,19]
[406217548,1771612245502,-507.54,0.00040273,19]
[406217549,1771612245511,-500.0,0.00040273,19]
[406217550,1771612245519,-500.0,0.00040273,19]
[406217551,1771612245529,-500.0,0.00040273,19]
[406217552,1771612245538,-500.0,0.00040273,19]
[406217553,1771612245547,-500.0,0.00040273,19]
[406217554,1771612245555,-500.0,0.00040273,19]
[406217555,1771612245566,-1085.04,0.00040547,7]
[406217556,1771612245576,-10248.52,0.00040547,19]
[406217557,1771612245584,-500.0,0.00040547,19]
[406217558,1771612245593,-715.24,0.00040547,19]
[406217559,1771612245602,-1341.29,0.00040547,19]
[406217560,1771612245611,-507.54,0.00040547,19]
[406217561,1771612245620,-500.0,0.00040547,19]
[406217562,1771612245629,-500.0,0.00040547,19]
[406217563,1771612245638,-500.0,0.00040547,19]
[406217564,1771612245647,-500.0,0.00040547,19]
[406217565,1771612245656,-500.0,0.00040547,19]
[406217566,1771612245664,-500.0,0.00040547,19]
[406217567,1771612245674,-1085.04,0.00040821,7]
[406217568,1771612245688,-10248.52,0.00040821,19]
[406217569,1771612245698,-500.0,0.00040821,19]
[406217570,1771612245707,-715.24,0.00040821,19]
[406217571,1771612245716,-1341.29,0.00040821,19]
[406217572,1771612245726,-507.54,0.00040821,19]
[406217573,1771612245735,-500.0,0.00040821,19]
[406217574,1771612245744,-500.0,0.00040821,19]
[406217575,1771612245754,-500.0,0.00040821,19]
[406217576,1771612245763,-500.0,0.00040821,19]
[406217577,1771612245772,-500.0,0.00040821,19]
[406217578,1771612245781,-500.0,0.00040821,19]
[406217579,1771612245791,-575.95,0.00040993,120]
[406217580,1771612245800,-1085.04,0.00041095,7]
[406217581,1771612245810,-10248.52,0.00041095,19]
[406217582,1771612245819,-500.0,0.00041095,19]
[406217583,1771612245827,-715.24,0.00041095,19]
[406217584,1771612245836,-1341.29,0.00041095,19]
[406217585,1771612245845,-507.54,0.00041095,19]
[406217586,1771612245855,-500.0,0.00041095,19]
[406217587,1771612245864,-325.56,0.00041095,19]
[406217588,1771612245873,-500.0,0.00041095,19]
[406217589,1771612245882,-500.0,0.00041095,19]
[406217590,1771612245891,-500.0,0.00041095,19]
[406217591,1771612245901,-500.0,0.00041095,19]
[406217593,1771612245910,-1500.0,0.000412,35]
[406217595,1771612245919,-1751818.28893694,0.00041253,30]
[406217597,1771612245934,-6873.16383452,0.00041253,30]
[406217599,1771612245944,-20448.438993,0.00041253,30]
[406217607,1771612246191,-233.35,0.0004,120]
[406217608,1771612246200,-1079.24108649,0.00041253,30]
[406217609,1771612246299,-3514.36875125,0.00041253,30]
[406217617,1771612557686,659.815,0.000156,120]
[406217618,1771612565885,1017.975,0.000156,120]
[406217619,1771612574266,1358.61567601,0.000156,120]
[406217620,1771612805734,180.7,6.5e-05,2]
[406217621,1771612806306,180.7,6.6e-05,2]
[406217622,1771612806930,180.7,6.8e-05,2]
[406217623,1771612807508,180.7,6.9e-05,2]
[406217625,1771613288792,-2567881.91997641,0.00041273,30]
[406217626,1771613288817,-2499.125168,0.00041273,2]
[406217627,1771613288841,-5056.93,0.00041273,30]
[406217628,1771613288868,-251.76681063,0.00041273,120]
[406217629,1771613288895,-150.83218661,0.00041273,120]
[406217630,1771613288920,-300260.70854529,0.00041273,30]
[406217631,1771613288945,-174.47008511,0.00041273,120]
[406217632,1771613288971,-174.47008511,0.00041273,120]
[406217633,1771613288996,-2123549.77714284,0.00041273,30]
[406217634,1771613290837,-5000000.0,0.00041273,30]
[406217635,1771613292117,-5000000.0,0.00041273,30]
[406217636,1771613304255,-5000000.0,0.00041273,30]
[406217637,1771613359647,-5000000.0,0.00041273,30]
[406217638,1771613361096,-5000000.0,0.00041273,30]
[406217639,1771613422404,-765306.04828194,0.00041273,30]
[406217640,1771613422428,-2000.0,0.00041273,35]
[406217641,1771613422549,-164.51098132,0.00041273,35]
[406217642,1771613422573,-2000.0,0.00041273,35]
[406217643,1771613422598,-151.0,0.00041273,35]
[406217644,1771613422621,-151.0,0.00041273,35]
[406217645,1771613422644,-151.0,0.00041273,35]
[406217646,1771613422667,-151.0,0.00041273,35]
[406217647,1771613422693,-250.0,0.00041273,35]
[406217648,1771613422715,-250.0,0.00041273,35]
[406217649,1771613422739,-250.0,0.00041273,35]
[406217650,1771613422763,-250.0,0.00041273,35]
[406217651,1771613422785,-250.0,0.00041273,35]
[406217652,1771613422807,-2000.0,0.00041273,30]
[406217653,1771613422830,-2074.0,0.00041273,30]
[406217654,1771613422861,-2150.738,0.00041273,30]
[406217655,1771613422891,-2230.315306,0.00041273,30]
[406217656,1771613422922,-2230.315306,0.00041273,30]
[406217657,1771613422948,-1917.29306342,0.00041273,30]
[406217658,1771613422973,-158.05576444,0.00041273,120]
[406217659,1771613422997,-500.0,0.00041273,120]
[406217660,1771613423023,-250.0,0.00041273,120]
[406217661,1771613423052,-250.0,0.00041273,120]
[406217662,1771613423078,-500.0,0.00041273,120]
[406217663,1771613423104,-250.0,0.00041273,120]
[406217664,1771613423130,-250.0,0.00041273,120]
[406217665,1771613423156,-250.0,0.00041273,120]
[406217666,1771613423182,-250.0,0.00041273,120]
[406217667,1771613423209,-250.0,0.00041273,120]
[406217668,1771613423233,-250.0,0.00041273,120]
[406217669,1771613423258,-250.0,0.00041273,120]
[406217670,1771613423284,-250.0,0.00041273,120]
[406217671,1771613423309,-151.0,0.00041273,120]
[406217672,1771613423336,-156.587,0.00041273,120]
[406217673,1771613423361,-162.380719,0.00041273,120]
[406217674,1771613423386,-500.0,0.00041273,120]
[406217675,1771613423412,-168.3888056,0.00041273,120]
[406217676,1771613423441,-168.3888056,0.00041273,120]
[406217677,1771613423466,-250.0,0.00041273,120]
[406217678,1771613423576,500.0,0.00041273,120]
[406217679,1771613423617,250.0,0.00041273,120]
[406217680,1771613423647,500.0,0.00041273,120]
[406217681,1771613423768,500.0,0.00041273,120]
[406217682,1771613423810,500.0,0.00041273,120]
[406217683,1771613424013,500.0,0.00041273,120]
[406217684,1771613424169,250.0,0.00041273,120]
[406217685,1771613424654,500.0,0.00041273,120]
[406217686,1771613425301,500.0,0.00041273,120]
[406217687,1771613425328,250.0,0.00041273,120]
[406217707,1771613432268,-300.0,0.00013272,2]
[406217709,1771613432278,-300.0,0.00013272,2]
[406217711,1771613432287,-1200.0,0.00013272,2]
[406217713,1771613432296,-150.0,0.00013272,2]
[406217715,1771613432305,-501.71596197,0.00013273,2]
[406217717,1771613432314,-500.0,0.00013273,2]
[406217719,1771613432323,-130.63139383,0.00013273,2]
[406217721,1771613432334,-306.70174738,0.00013273,2]
[406217723,1771613432345,-62.66685879,0.00013273,2]
[406217725,1771613432353,-337.005,0.00013273,2]
[406217727,1771613432362,-500.0,0.00013273,2]
[406217729,1771613432371,-300.0,0.00013673,2]
[406217731,1771613432380,-1140.94182488,0.00013699,2]
[406217733,1771613432389,-500.0,0.00013699,2]
[406217735,1771613432397,-517.77221258,0.00013699,2]
[406217738,1771613432410,-1000.0,0.00013821,2]
[406217741,1771613432419,-629.69540114,0.00014247,2]
[406217744,1771613432429,-1500.0,0.00014368,2]
[406217748,1771613432438,-420.0,0.00014551,2]
[406217751,1771613432448,-420.0,0.00014599,2]
[406217754,1771613432457,-478.0,0.00014599,2]
[406217757,1771613432467,-1500.0,0.00014916,2]
[406217760,1771613432475,-1403.7302504,0.00017143,2]
[406217762,1771613432484,-519.66290764,0.00017999,2]
[406217764,1771613432494,-321.3239246,0.00017999,2]
[406217766,1771613432503,-577.1292709,0.00017999,2]
[406217768,1771613432513,-500.0,0.00017999,2]
[406217770,1771613432522,-349.97810292,0.00017999,2]
[406217772,1771613432534,-150.02189708,0.00017999,2]
[406217774,1771613432543,-500.0,0.00017999,2]
[406217776,1771613432553,-700.0,0.00023052,2]
[406217778,1771613432562,-700.0,0.00023107,2]
[406217780,1771613432571,-743.73449086,0.00023226,2]
[406217782,1771613432581,-700.0,0.00023386,2]
[406217784,1771613432591,-700.0,0.00023409,2]
[406217786,1771613432600,-700.0,0.00023554,2]
[406217788,1771613432609,-2442.14205502,0.00023604,2]
[406217790,1771613432618,-700.0,0.00023977,2]
[406217792,1771613432627,-700.0,0.00024143,2]
[406217794,1771613432637,-700.0,0.0002416,2]
[406217796,1771613432645,-700.0,0.00024221,2]
[406217798,1771613432759,-700.0,0.00024373,2]
[406217799,1771613432769,-715.20371409,0.00024373,2]
[406217800,1771613432778,-700.0,0.00024446,2]
[406217801,1771613432787,-700.0,0.00024885,2]
[406217802,1771613432796,-274.01174173,0.00025143,7]
[406217803,1771613432807,-425.98825827,0.00025143,7]
[406217804,1771613432816,-700.0,0.00025886,7]
[406217805,1771613432826,-2378.31796823,0.00026114,2]
[406217806,1771613432841,-63.82408675,0.00026114,2]
[406217807,1771613432851,-700.0,0.00026284,7]
[406217808,1771613432860,-470.93760788,0.00026547,7]
[406217824,1771613438454,-229.06239212,0.00026547,7]
[406217825,1771613438464,-500.0,0.00026549,7]
[406217826,1771613438473,-700.0,0.00026645,7]
[406217827,1771613438483,-700.0,0.00026945,7]
[406217828,1771613438492,-700.0,0.00027103,7]
[406217829,1771613438502,-266.99914101,0.00027446,7]
[406217830,1771613438513,-433.00085899,0.00027446,7]
[406217831,1771613438522,-700.0,0.00027459,7]
[406217832,1771613438533,-700.0,0.00027577,7]
[406217833,1771613438542,-700.0,0.00027675,7]
[406217834,1771613438552,-700.0,0.00027717,7]
[406217835,1771613438561,-700.0,0.00028213,7]
[406217836,1771613438570,-172.17349718,0.00028306,7]
[406217837,1771613438580,-527.82650282,0.00028306,7]
[406217838,1771613438590,-700.0,0.00028494,7]
[406217839,1771613438599,-2442.14205498,0.00028624,2]
[406217840,1771613438608,-278.22121982,0.00028845,7]
[406217841,1771613438619,-421.77878018,0.00028845,7]
[406217842,1771613438628,-1200.0,0.00029102,7]
[406217843,1771613438638,-2442.14205498,0.00031134,2]
[406217844,1771613438648,-999.0,0.00032876,120]
[406217845,1771613438658,-2442.14205498,0.00033643,2]
[406217846,1771613438667,-999.0,0.00034246,120]
[406217847,1771613438676,-999.0,0.00035616,120]
[406217848,1771613438685,-2442.14205498,0.00036153,2]
[406217849,1771613438694,-636.9060936,0.00036986,120]
[406217850,1771613438704,-1847.5662577,0.00037173,2]
[406217851,1771613438713,-202.02207638,0.00037563,3]
[406217852,1771613438722,-64732.20637985,0.00037573,2]
[406217902,1771613441204,-666.0,0.00027675,10]
[406217904,1771613441213,-234.0,0.00037573,2]
[406217907,1771613441224,-512.3801944,0.00037573,2]
[406217909,1771613441235,-931.44507695,0.00037573,2]
[406218366,1771613445565,-891.03011582,0.00025936,20]
[406218368,1771613445574,-163.965,0.000311,2]
[406218370,1771613445583,-426.0,0.000311,2]
[406218372,1771613445591,-198.035,0.000311,2]
[406218374,1771613445600,-46962.57870977,0.00037573,2]
[406218407,1771613445901,-435.0,0.00037573,2]
[406218409,1771613445914,-5700.00000083,0.00037573,2]
[406218411,1771613445925,-294.68780185,0.00037573,2]
[406218412,1771613445935,-43349.29055396,0.00037573,2]
[406218413,1771613445946,-6057.85017759,0.00037573,2]
[406218414,1771613445956,-900.16552,0.00037573,2]
[406218415,1771613445966,-7186.78748604,0.00037573,2]
[406218416,1771613445977,-513.83400313,0.00037573,2]
[406218417,1771613445988,-792.31526139,0.00037573,2]
[406218440,1771613446336,-181.0,0.000341,2]
[406218442,1771613446346,-5402.3045271,0.00037573,2]
[406218444,1771613446357,-91785.94385357,0.00037573,2]
[406218449,1771613446393,-1805.92423623,0.00037573,2]
[406218451,1771613446404,-3251.28983988,0.00037573,2]
[406218453,1771613446416,-1702.76985646,0.00037573,2]
[406218455,1771613446428,-799.77880298,0.00037573,2]
[406218464,1771613446499,-4003.17328358,0.00037573,2]
[406221860,1771614158050,-10.96928208,0.00018145,120]
[406221861,1771614158119,-278.69301699,0.00018145,120]
[406221886,1771614631438,-374.84103799,0.00012879,2]
[406221888,1771614631448,-303.24243153,0.00013009,2]
[406221890,1771614631458,-499.97031271,0.00013009,2]
[406221892,1771614631469,-482.9967126,0.00013009,2]
[406221894,1771614631478,-500.0,0.00013273,2]
[406221896,1771614631487,-1000.0,0.00013821,2]
[406221898,1771614631496,-617.0032874,0.00014368,2]
[406221900,1771614631507,-1018.11620147,0.00014368,2]
[406221902,1771614631516,-511.0,0.00017002,2]
[406221904,1771614631525,-300.0,0.00017003,2]
[406221906,1771614631534,-300.0,0.00017003,2]
[406221908,1771614631543,-420.0,0.00018571,2]
[406221909,1771614631552,-169.35,0.000187,2]
[406221911,1771614631561,-31.53379853,0.0002,2]
[406221914,1771614631572,-121.12918989,0.0002,2]
[406221916,1771614631581,-521.848783,0.00020132,2]
[406221928,1771614631689,-500.0,0.00020132,2]
[406221931,1771614631700,-249.46530108,0.00020173,2]
[406221933,1771614631710,-353.79315855,0.00020284,2]
[406221963,1771614637625,-233.20684145,0.00020284,2]
[406221964,1771614637636,-412.56039439,0.00020987,2]
[406221977,1771614637748,-8612.16466031,0.00020987,2]
[406221979,1771614637758,-610.53551378,0.00021148,2]
[406221981,1771614637769,-2212.03763568,0.00021736,2]
[406221983,1771614637779,-415.03255182,0.00021736,2]
[406221986,1771614637790,-194.78014674,0.00021736,2]
[406221988,1771614637801,-500.0,0.00021736,2]
[406221990,1771614637810,-500.0,0.00021736,2]
[406221992,1771614637821,-560.55213672,0.00021736,2]
[406221994,1771614637832,-500.0,0.00021736,2]
[406221996,1771614637842,-516.12947213,0.00021736,2]
[406221998,1771614637853,-500.0,0.00021736,2]
[406222001,1771614637863,-500.0,0.00021736,2]
[406222003,1771614637874,-500.0,0.00021736,2]
[406222005,1771614637884,-500.0,0.00021736,2]
[406222007,1771614637895,-500.0,0.00021736,2]
[406222009,1771614637905,-500.0,0.00021736,2]
[406222011,1771614637916,-500.0,0.00021736,2]
[406222013,1771614637927,-500.0,0.00021736,2]
[406222016,1771614637938,-500.0,0.00021736,2]
[406222018,1771614637949,-500.0,0.00021736,2]
[406222020,1771614637960,-500.0,0.00021736,2]
[406222022,1771614637972,-500.0,0.00021736,2]
[406222025,1771614637984,-500.0,0.00021736,2]
[406222026,1771614637995,-500.0,0.00021736,2]
[406222027,1771614638005,-500.0,0.00021736,2]
[406222028,1771614638016,-500.0,0.00021736,2]
[406222029,1771614638026,-500.0,0.00021736,2]
[406222030,1771614638036,-628.8525848,0.00021736,2]
[406222031,1771614638047,-500.0,0.00021736,2]
[406222032,1771614638058,-500.0,0.00021736,2]
[406222033,1771614638069,-500.0,0.00021736,2]
[406222034,1771614638080,-500.0,0.00021736,2]
[406222035,1771614638092,-500.0,0.00021736,2]
[406222036,1771614638103,-500.0,0.00021736,2]
[406222037,1771614638115,-500.0,0.00021736,2]
[406222038,1771614638126,-500.0,0.00021736,2]
[406222039,1771614638138,-500.0,0.00021736,2]
[406222040,1771614638151,-500.0,0.00021736,2]
[406222041,1771614638162,-500.0,0.00021736,2]
[406222042,1771614638172,-500.0,0.00021736,2]
[406222043,1771614638182,-500.0,0.00021736,2]
[406222044,1771614638194,-500.0,0.00021736,2]
[406222045,1771614638205,-500.0,0.00021736,2]
[406222046,1771614638217,-500.0,0.00021736,2]
[406222047,1771614638228,-500.0,0.00021736,2]
[406222048,1771614638239,-225.0,0.00021736,2]
[406222049,1771614638250,-500.0,0.00021736,2]
[406222050,1771614638261,-500.0,0.00021736,2]
[406222051,1771614638272,-500.0,0.00021736,2]
[406222052,1771614638282,-500.0,0.00021736,2]
[406222053,1771614638292,-500.0,0.00021736,2]
[406222054,1771614638303,-500.0,0.00021736,2]
[406222055,1771614638314,-500.0,0.00021736,2]
[406222056,1771614638325,-500.0,0.00021736,2]
[406222057,1771614638336,-500.0,0.00021736,2]
[406222058,1771614638347,-500.0,0.00021736,2]
[406222059,1771614638357,-344.05511363,0.00021736,2]
[406222060,1771614638368,-500.0,0.00021736,2]
[406222061,1771614638380,-500.0,0.00021736,2]
[406222062,1771614638391,-500.0,0.00021736,2]
[406222063,1771614638402,-500.0,0.00021736,2]
[406222064,1771614638414,-500.0,0.00021736,2]
[406222065,1771614638425,-500.0,0.00021736,2]
[406222066,1771614638436,-500.0,0.00021736,2]
[406222067,1771614638447,-500.0,0.00021736,2]
[406222068,1771614638459,-500.0,0.00021736,2]
[406222069,1771614638470,-500.0,0.00021736,2]
[406222070,1771614638481,-500.0,0.00021736,2]
[406222071,1771614638493,-500.0,0.00021736,2]
[406222072,1771614638504,-331.49626337,0.00021736,2]
[406222098,1771614640090,-168.50373663,0.00021736,2]
[406222112,1771614640214,-500.0,0.00021736,2]
[406222114,1771614640230,-500.0,0.00021736,2]
[406222117,1771614640241,-16.05211943,0.00021736,2]
[406222239,1771614644643,-483.94788057,0.00021736,2]
[406222240,1771614644653,-500.0,0.00021736,2]
[406222241,1771614644663,-500.0,0.00021736,2]
[406222242,1771614644673,-500.0,0.00021736,2]
[406222243,1771614644683,-500.0,0.00021736,2]
[406222244,1771614644692,-560.0,0.00021736,2]
[406222245,1771614644702,-9.02222137,0.00021736,2]
[406222246,1771614644855,-490.97777863,0.00021736,2]
[406222247,1771614644864,-500.0,0.00021736,2]
[406222248,1771614644874,-500.0,0.00021736,2]
[406222249,1771614644883,-214.38331769,0.00021736,2]
[406222263,1771614645545,-285.61668231,0.00021736,2]
[406222264,1771614645555,-500.0,0.00021736,2]
[406222265,1771614645564,-500.0,0.00021736,2]
[406222266,1771614645573,-500.0,0.00021736,2]
[406222267,1771614645583,-500.0,0.00021736,2]
[406222268,1771614645592,-500.0,0.00021736,2]
[406222269,1771614645601,-500.0,0.00021736,2]
[406222270,1771614645610,-500.0,0.00021736,2]
[406222271,1771614645619,-500.0,0.00021736,2]
[406222272,1771614645628,-500.0,0.00021736,2]
[406222273,1771614645638,-500.0,0.00021736,2]
[406222274,1771614645647,-500.0,0.00021736,2]
[406222275,1771614645656,-500.0,0.00021736,2]
[406222276,1771614645665,-500.0,0.00021736,2]
[406222277,1771614645675,-500.0,0.00021736,2]
[406222278,1771614645685,-500.0,0.00021736,2]
[406222279,1771614645695,-500.0,0.00021736,2]
[406222280,1771614645707,-500.0,0.00021736,2]